Cogmind - Beta 16 @@@ ROGUE MODE // 2025.10.30 @ 11:45:02 Player: Carcosa Result: Destroyed by as-93884 with Assembled Heavy Rifle Performance ------------- Evolutions (0) 0 Regions Visited (2) 400 Robots Destroyed (11) 55 Value Destroyed (207) 207 Prototype IDs (0) 0 Alien Tech Used (0) 0 Bonus (0) 0 TOTAL SCORE: 662 Bonus ------- None Cogmind --------- Core Integrity 0/250 Matter 161/300 Energy 47/100 System Corruption 1% Temperature Cool (0) Movement Core (250) Ox4 Location -10/Mines Parts ------- > --- POWER (1) -------- (None) > --- PROPULSION (2) --- (None) > --- UTILITY (2) ------ Medium Storage Unit Signal Interpreter > --- WEAPON (2) ------- Medium Laser Medium Laser > --- INVENTORY (10) --- Wheel Flight Unit Medium Battery (150) Small Matter Pod (0) ECM Suite Peak State ------------ > --- POWER ------------ (None) > --- PROPULSION ------- Aluminum Leg Aluminum Leg > --- UTILITY ---------- Medium Battery Signal Interpreter > --- WEAPON ----------- Medium Laser Grenade Launcher > --- INVENTORY -------- Medium Laser Small Laser Small Laser [Rating: 6] Favorites ----------- Power Light Ion Engine Engine Light Ion Engine Propulsion Aluminum Leg Leg Aluminum Leg Wheel Wheel Utility Signal Interpreter Storage Medium Storage Unit Processor Signal Interpreter Weapon Medium Laser Energy Gun Medium Laser Ballistic Gun Light Assault Rifle Launcher Grenade Launcher Special Weapon Mining Laser Build | -11 -10 -10 ------- Run | Yrd Mat Min Slots Evolved . | . . . Power . | . . . Propulsion . | . . . Utility . | . . . Weapon . | . . . Parts Attached 15 | 5 7 3 Power 1 | 1 . . Engine 1 | 1 . . Core . | . . . Reactor . | . . . Propulsion 4 | 2 2 . Treads . | . . . Leg 2 | . 2 . Wheel 2 | 2 . . Hover . | . . . Flight . | . . . Utility 3 | . 3 . Device . | . . . Storage 2 | . 2 . Processor 1 | . 1 . Hackware . | . . . Protection . | . . . Artifact . | . . . Weapon 7 | 2 2 3 Energy Gun 4 | 2 1 1 Energy Cannon . | . . . Ballistic Gun 1 | . . 1 Ballistic Cannon . | . . . Launcher 1 | . 1 . Special Weapon 1 | . . 1 Impact Weapon . | . . . Slashing Weapon . | . . . Piercing Weapon . | . . . Special Melee Weapon . | . . . Unidentified Prototypes . | . . . Parts Lost 9 | . 3 6 Power 1 | . 1 . Propulsion 4 | . 2 2 Utility . | . . . Weapon 4 | . . 4 Highest Loss Streak 6 | . 3 6 To Critical Strikes . | . . . Average Backups 4 | 2 4 7 Power . | . . . Propulsion . | 1 . 2 Utility 1 | . 1 3 Weapon 2 | . 2 2 Tool/Special . | . . . Unused Backups 5 | . 2 3 Power . | . . . Propulsion 2 | . 1 1 Utility 2 | . . 2 Weapon 1 | . 1 . Tool/Special . | . . . Average Slot Usage (%) 78 | . 78 74 Engine 2 | . 2 . Leg 22 | . 22 21 Wheel 4 | . 5 . Storage 11 | . 10 14 Processor 8 | . 8 14 Energy Gun 16 | . 17 7 Ballistic Gun 1 | . . 10 Launcher 10 | . 10 3 Peak Build Rating 6 | 5 6 6 Average Rating 5 | 3 5 4 On Entrance 3 | . 5 6 Avg Prop Armor Cover (%) . | . . . Naked Turns . | . . . Heaviest Build 15 | 7 15 14 Greatest Support 20 | 20 20 20 Greatest Overweight (x) 4 | . . 4 Average Overweight (x) . | . . 2 Largest Inventory Capacity 10 | 5 10 10 Average Capacity 7 | 5 7 10 Most Carried 9 | 5 9 9 Average Carried 4 | 2 4 7 Final Capacity 10 | 5 10 10 Final Carried 9 | 4 9 5 Class Distribution -------------------- 100% | Mutant Dominant Class ---------------- Mutant | -10/Materials Mutant | -10/Mines Resources | -11 -10 -10 ----------- Run | Yrd Mat Min Matter Collected 344 | 250 94 . Remotely . | . . . Salvage Created 200 | 31 150 19 Parts 17 | 1 16 . Haulers Intercepted . | . . . Recyclers Shooed . | . . . Parts Field Recycled . | . . . Retrieved Matter . | . . . Parts Self-Destructed . | . . . Prevented . | . . . Parts Restored . | . . . Kills | -11 -10 -10 ------- Run | Yrd Mat Min Combat Hostiles Destroyed 12 | 1 9 2 Guns 7 | 1 4 2 AOE 5 | . 5 . Classes Destroyed 4 | 1 2 1 Worker 1 | . 1 . Swarmer 6 | . 6 . Grunt 4 | 1 3 . Assembled 2 | . . 2 Best Kill Streak 4 | 1 4 2 Combat Bots Only 3 | 1 3 2 Max Kills in Single Turn 2 | 1 2 1 Gunslinging . | . . . Exploded 2 | . 2 . Melee . | . . . Uniques/NPCs Destroyed . | . . . Combat | -11 -10 -10 -------- Run | Yrd Mat Min Hostile Shots Fired 84 | 7 54 23 Missed 25 | 4 17 4 Hits 59 | 3 37 19 Melee 5 | . . 5 Projectile 54 | 3 37 14 Critical Strikes 1 | . . 1 Damage Taken 945 | 32 561 352 Core 264 | . 172 92 Absorbed by Shields . | . . . Core Remaining (%) 100 | 100 . . Volleys Fired 34 | 5 21 8 Largest 2 | 2 2 2 Hottest 120 | 100 90 120 Shots Fired 57 | 10 35 12 Gun 46 | 10 25 11 Cannon . | . . . Launcher 10 | . 10 . Special 1 | . . 1 Kinetic 5 | . . 5 Thermal 42 | 10 25 7 Explosive 10 | . 10 . Electromagnetic . | . . . Robot Hit Streak 7 | 2 6 7 Robot Miss Streak 3 | 2 3 2 Penetration Max . | . . . Secondary Targets . | . . . Shots Hit Robots 30 | 6 16 8 Core Hits 20 | 2 13 5 Critical Kills . | . . . Critical Parts Destroyed . | . . . Critical Strikes 3 | 1 2 . Burn 3 | 1 2 . Melee Attacks . | . . . Impact . | . . . Slashing . | . . . Piercing . | . . . Sneak Attacks . | . . . Combat Hostiles . | . . . Follow-up Attacks . | . . . Damage Inflicted 836 | 74 661 101 Guns 340 | 74 189 77 Cannons . | . . . Explosions 472 | . 472 . Melee . | . . . Ramming . | . . . Kinetic 33 | . . 33 Thermal 331 | 74 189 68 Explosive 472 | . 472 . Electromagnetic . | . . . Impact . | . . . Slashing . | . . . Piercing . | . . . Highest Corruption 1 | . 1 1 Average Corruption 1 | . 1 1 Corruption Purged . | . . . Corruption Blocked . | . . . Effects 4 | . 3 1 Message Errors 2 | . 2 . Matter Fused 2 | . 1 1 Overload Shots . | . . . Overflow Damage . | . . . Projectiles . | . . . Explosions . | . . . Melee . | . . . Knockbacks . | . . . Impact . | . . . Kinetic . | . . . Secondary . | . . . Self-Inflicted Damage 85 | . 85 . Shots 3 | . 3 . Rammed . | . . . Targets Rammed . | . . . Kicked . | . . . Crushed . | . . . Highest Temperature 276 | 193 276 20 Average Temperature 101 | 107 114 9 Received Heat Transfer 102 | 18 84 . Siege Activations . | . . . Martial Activations . | . . . Shielding Activations . | . . . Robots Disrupted . | . . . Combat Hostiles . | . . . Robots Corrupted . | . . . Combat Hostiles . | . . . Parts Fried . | . . . Impact Corruptions . | . . . Robots Melted . | . . . Combat Hostiles . | . . . Parts Melted 4 | 2 2 . Heat Transferred 1126 | 296 668 162 Parts Sabotaged . | . . . Parts Stolen . | . . . Parts Stripped . | . . . Power Chain Reactions . | . . . Alert | -11 -10 -10 ------- Run | Yrd Mat Min Maximum Alert Level . | . . . Low Security (%) 100 | 100 100 100 Level 1 . | . . . Level 2 . | . . . Level 3 . | . . . Level 4 . | . . . Level 5 . | . . . High Security . | . . . Max Security . | . . . Peak Influence 173 | 20 173 63 Initial 63 | . 6 63 Average 30 | 2 36 31 Influence Increases 308 | 20 288 . Destroy 0b10 Robot/C 200 | 20 180 . Destroy 0b10 Robot/NC 5 | . 5 . Destroy Leader 30 | . 30 . Successful Hack 5 | . 5 . Disable Machine 15 | . 15 . Destroy Structure 53 | . 53 . Influence Decreases 308 | 10 135 163 Entered New Map 104 | . 4 100 Time Decay 121 | 10 101 10 Lost Part 83 | . 30 53 Squads Dispatched 1 | . 1 . Investigation 1 | . 1 . Extermination . | . . . Reinforcement . | . . . Assault . | . . . Garrison . | . . . Intercept . | . . . Searches Triggered . | . . . Construction Impeded . | . . . Haulers Reinforced . | . . . Active Scanning Responses . | . . . Cargo Convoy Interrupts . | . . . Stealth | -11 -10 -10 --------- Run | Yrd Mat Min Distress Signals . | . . . Communications Jammed . | . . . Distress Signals . | . . . Times Spotted 17 | 1 11 5 Peak Tracking Total 5 | 1 4 5 Tactical Retreats 1 | . . 1 Traps | -11 -10 -10 ------- Run | Yrd Mat Min Traps Triggered 2 | . 2 . Indirectly . | . . . Trap Hack Attempts . | . . . Triggered . | . . . Disarmed . | . . . Reprogrammed . | . . . Reused . | . . . Traps Extracted . | . . . Installed . | . . . Triggered . | . . . Machines | -11 -10 -10 ---------- Run | Yrd Mat Min Machines Disabled 2 | . 2 . Max in Single Turn 1 | . 1 . Machines Repaired . | . . . Machines Dismantled . | . . . Machines Sabotaged . | . . . Overloaded Fab Kills . | . . . Hacking | -11 -10 -10 --------- Run | Yrd Mat Min Machines Accessed 4 | . 4 . Terminals 3 | . 3 . Fabricators . | . . . Repair Stations . | . . . Recycling Units 1 | . 1 . Scanalyzers . | . . . Garrison Access . | . . . Total Hacks 15 | . 15 . Successful 13 | . 13 . Failed 2 | . 2 . Catastrophic . | . . . Database Lockouts . | . . . Manual . | . . . Terminals 10 | . 10 . Fabricators . | . . . Repair Stations . | . . . Recycling Units 5 | . 5 . Scanalyzers . | . . . Garrison Access . | . . . Terminal Hacks 8 | . 8 . Record 4 | . 4 . Emergency Access Points 1 | . 1 . Alert Level 1 | . 1 . Maintenance Status 1 | . 1 . Zone Layout 1 | . 1 . Fabricator Hacks . | . . . Repair Station Hacks . | . . . Recycling Unit Hacks 5 | . 5 . Recycle Component 1 | . 1 . Process 2 | . 2 . Report Inventory 2 | . 2 . Scanalyzer . | . . . Garrison Access Hacks . | . . . Unauthorized Hacks . | . . . Terminals . | . . . Fabricators . | . . . Repair Stations . | . . . Recycling Units . | . . . Scanalyzers . | . . . Garrison Access . | . . . Data Cores Recovered . | . . . Used . | . . . Hacking Detections 3 | . 3 . Full Trace Events 1 | . 1 . Feedback Events . | . . . Feedback Blocked . | . . . Robot Schematics Acquired . | . . . Robots Built . | . . . Authchips . | . . . Time . | . . . Total Robot Build Rating . | . . . Part Schematics Acquired . | . . . Parts Built . | . . . Authchips . | . . . Time . | . . . Total Part Build Rating . | . . . Part Studies Acquired . | . . . Parts Repaired . | . . . Time . | . . . Parts Recycled 1 | . 1 . Recycled Matter 13 | . 13 . Retrieved Matter . | . . . Retrieved Components . | . . . Parts Scanalyzed . | . . . Part Schematics Acquired . | . . . Parts Damaged . | . . . Bothacking | -11 -10 -10 ------------ Run | Yrd Mat Min Used RIF Installer . | . . . Robots Hacked . | . . . Non-combat . | . . . Combat . | . . . Robot Hacks Applied . | . . . Relay Couplers Released . | . . . Fabnet Peak Effective % . | . . . Robots Rewired . | . . . Allies Hacked . | . . . Hacks Repelled . | . . . Allies | -11 -10 -10 -------- Run | Yrd Mat Min Total Allies . | . . . Largest Group . | . . . Highest-Rated Group . | . . . Highest-Rated Ally . | . . . Total Orders . | . . . Ally Attacks . | . . . Total Damage . | . . . Kills . | . . . Allies Corrupted . | . . . Allies Melted . | . . . Intel | -11 -10 -10 ------- Run | Yrd Mat Min Active Infowar (turns) . | . . . Robot Analysis Total . | . . . Derelict Logs Recovered . | . . . Drone Launches . | . . . Drone Recoveries . | . . . Exploration | -11 -10 -10 ------------- Run | Yrd Mat Min Turns Passed 498 | 86 372 40 Spaces Moved 330 | 76 247 7 Core 20 | 16 . 4 Treads . | . . . Legs 219 | . 216 3 Wheels 91 | 60 31 . Hover . | . . . Flight . | . . . Fastest Speed 50 | 50 80 120 Average Speed 107 | 73 114 194 Slowest Speed 250 | 80 120 250 Overloaded Moves . | . . . Propulsion Burnouts . | . . . Robots Hopped . | . . . Potential Cave-ins . | . . . Cave-ins Triggered . | . . . Exploration Rate (%) 16 | 5 43 2 Regions Visited 2 Branch Regions 1 Pre-discovered Areas . | . . . Known Exits Taken 1 | . 1 . Unknown Exits Taken 1 | 1 . . Scrap Searched . | . . . Spaces Dug . | . . . Terrain Destroyed 60 | . 60 . Melee . | . . . Projectile . | . . . AOE 60 | . 60 . Terrain Rammed . | . . . Walls Destroyed . | . . . Machines Disabled . | . . . Actions | -11 -10 -10 --------- Run | Yrd Mat Min Total 415 | 95 299 21 Wait 9 | 1 8 . Move 328 | 75 246 7 Hop . | . . . Pick Up 21 | 9 12 . Fast Attach . | . . . Attach 14 | 5 5 4 Detach 1 | . 1 . Swap 6 | . 4 2 Drop 2 | . 2 . Fire 34 | 5 21 8 Melee . | . . . Ram . | . . . Kick . | . . . Crush . | . . . Escape Stasis . | . . . Rewire . | . . . Trap . | . . . Miscellaneous . | . . . Route ------- -11/Scrapyard -10/Materials (discovered 2 exits: *Mat / *Min) -10/Mines History --------- Turn | Location | Event 2 | -11/Scrapyard | Met Revision 17 58 | -11/Scrapyard | Discovered new exit (range 8) 87 | -11/Scrapyard | Entered Materials 186 | -10/Materials | Lost 3 parts (1p2n) 190 | -10/Materials | Discovered new exit (range 16) 245 | -10/Materials | Identified exit to Materials 316 | -10/Materials | Build established: Mutant 366 | -10/Materials | Core integrity fell below 50% 414 | -10/Materials | Discovered new exit (range 11) 430 | -10/Materials | Identified exit to Mines 459 | -10/Materials | Entered Mines 460 | -10/Mines | Assembled infested the area 475 | -10/Mines | Core integrity fell below 20% 499 | -10/Mines | Destroyed by as-93884 with Assembled Heavy Rifle Last Messages --------------- as-68181 destroyed. Lgt. Assault Rifle destroyed. Aluminum Leg destroyed. To regain energy, simply wait via the mouse wheel, '.', or KP5. Also make sure your per-turn energy generation is a net positive, and consider deactivating power-draining parts if not. Mining Laser destroyed. System corrupted: Matter fused (-8). Sml. Laser destroyed. Aluminum Leg destroyed. as-33980 destroyed. [Achievement: Hydra] Overweight warning: You are carrying more than your current propulsion can efficiently support, which slows movement; see status page ('s') or the top of the parts list for the specific mass vs. support values. [Achievement: First Step to Greatness] Map ----- +----------------------------------------------------+ | ??????????????????????????????? | | ??????????????????????????????? | | ??????????????????????????????? | | ??????????????????????????????? | | ??????????????????????????????? | | ??????????????????????????????? | | ??????????????????????????????? | | ??????????????????????????????? | | ??????????????????????????????? | | ??????????????????????????????? | | ??????????????????????????????? | | ??????????????????????????????? | | ??????????????????????????????? | | ??????????????????????????????? | | ??????????????????????????????? | | ??????????????????????????????? | | ??????????????????????????????? | | ??????????????????????????????? | | ??????????????????????????????? | | ??????????????????????????????? | | ???#######????????????????????? | | ??## ##???????????????????? | | ??# #???????????????????? | | ??# #??#????????????????? | | ??## #a=#????????????????? | | ???## @ a #????????????????? | | ????## #####????????????????? | | ?????#####????????????????????? | | ??????????????????????????????? | | ??????????????????????????????? | | ??????????????????????????????? | | ??????????????????????????????? | | ??????????????????????????????? | | | | | | | | | | | | | | | | | | | | | | | | | | | | | | | | | | | +----------------------------------------------------+ Best States ------------- Heat Dissipation 25 Energy Generation 10 Energy Capacity 250 Matter Stores 300 Matter Capacity 300 Sight Range 16 Terrain Scan Density 10 Evasion (%) 55 Item Schematics ----------------- None Robot Schematics ------------------ None Fabricated ------------ Nothing Repaired ---------- Nothing Studied --------- None Alien Tech Used ----------------- None Achievements -------------- First Step to Greatness Hydra One Hack Too Far There's More Where That Came From Challenges ------------ None Game ------ Seed DamperFireSpoofer Manual? 0 Play Time 00:35:12 Cumulative 0.5 hours Start 2025.10.30 @ 11:01:24 End 2025.10.30 @ 11:45:02 Sessions 2 Manual Loads 0 Difficulty Rogue Special Mode None Game No. 1 Rogue 1 Adventurer 0 Explorer 0 Win Type - Total 0 Types 0/0/0/0/0/0/0/0/0/0 Lore% 0 Gallery% 0 Achievement% 0 Wizard Run 0 Options --------- Layout 1 ASCII 0 Keyboard 0 Movement Mouse Keybinds 0 Fullscreen 1 Font 32/SmallcapsGlow Map View 50x35 Zoom Use 0% Tactical HUD 0 Map Filters NONE Filters NONE Steam 1 RUN: a3f67669-2079-4b58-8901-a546eb8ccd77